fUST/lending_fUST_20240613
["ID","MTS","AMOUNT","RATE_DAILY","PERIOD"]
[329283878,1718214647987,-902.97,0.00018356,2]
[329283880,1718214647997,-500.0,0.00018356,2]
[329283882,1718214648007,-545.42688341,0.00018356,2]
[329283884,1718214648021,-4625.93287734,0.00018356,2]
[329283886,1718214648033,-930.83023925,0.00018356,2]
[329283888,1718214648043,-500.0,0.00018356,2]
[329283890,1718214648054,-500.0,0.00018356,2]
[329283891,1718214648064,-500.0,0.00018356,2]
[329283893,1718214648077,-4887.29413499,0.00018356,2]
[329283896,1718214648090,-791.02502001,0.00018356,2]
[329283898,1718214648102,-232.090845,0.00018356,2]
[329283900,1718214648113,-7011.27,0.00018356,2]
[329283902,1718214648123,-500.0,0.00018356,2]
[329283904,1718214648135,-1809.54,0.00018356,2]
[329283906,1718214648147,-3262.64,0.00018356,2]
[329283908,1718214648158,-500.0,0.00018356,2]
[329283910,1718214648169,-553.81,0.00018356,2]
[329283912,1718214648182,-852.76,0.00018356,2]
[329283915,1718214648194,-56.87301906,0.00018356,2]
[329283917,1718214648210,-5722.57698094,0.00018356,2]
[329283919,1718214648220,-706.57,0.00018356,2]
[329283921,1718214648230,-500.0,0.00018356,2]
[329283923,1718214648244,-500.0,0.00018356,2]
[329283925,1718214648256,-312.09194265,0.00018356,2]
[329283927,1718214648268,-684.79,0.00018356,2]
[329283929,1718214648280,-531.41,0.00018356,2]
[329283932,1718214648292,-500.0,0.00018356,2]
[329283933,1718214648302,-1017.72,0.00018356,2]
[329283935,1718214648312,-500.0,0.00018356,2]
[329283937,1718214648323,-500.0,0.00018356,2]
[329283939,1718214648333,-500.0,0.00018356,2]
[329283942,1718214648345,-1667.53,0.00018356,2]
[329283944,1718214648362,-1461.61,0.00018356,2]
[329283946,1718214648375,-500.0,0.00018356,2]
[329283948,1718214648386,-160.0,0.000184,2]
[329283950,1718214648396,-155.0,0.0001844,2]
[329283952,1718214648408,-606.91207968,0.000185,2]
[329283954,1718214648419,-559.82546152,0.0001853,2]
[329283955,1718214648432,-222.8,0.0001853,2]
[329283956,1718214648443,-166.666666,0.00018575,2]
[329283957,1718214648453,-500.0,0.00018629,2]
[329283958,1718214648464,-500.0,0.0001863,2]
[329283959,1718214648474,-500.0,0.0001863,2]
[329283960,1718214648485,-500.0,0.0001863,2]
[329283961,1718214648496,-500.0,0.0001863,4]
[329283962,1718214648506,-500.0,0.0001863,2]
[329283963,1718214648517,-500.0,0.0001863,2]
[329283964,1718214648527,-711.32,0.0001863,2]
[329283966,1718214648537,-598.21922168,0.0001863,2]
[329283967,1718214648550,-518.49,0.0001863,2]
[329283969,1718214648560,-500.0,0.0001863,2]
[329283971,1718214648571,-735.45,0.0001863,2]
[329283972,1718214648585,-500.0,0.0001863,2]
[329283973,1718214648596,-957.28,0.0001863,2]
[329283974,1718214648606,-500.0,0.0001863,2]
[329283975,1718214648616,-500.0,0.0001863,2]
[329283976,1718214648627,-500.0,0.0001863,2]
[329283977,1718214648637,-151.0,0.0001863,2]
[329283978,1718214648651,-859.83,0.0001863,2]
[329283979,1718214648661,-2016.25,0.0001863,2]
[329283980,1718214648672,-892.11,0.0001863,2]
[329283981,1718214648683,-2624.68,0.0001863,2]
[329283983,1718214648694,-500.0,0.0001863,2]
[329283985,1718214648705,-1534.59,0.0001863,2]
[329283986,1718214648717,-151.0,0.0001863,2]
[329283988,1718214648731,-708.14,0.0001863,2]
[329283989,1718214648742,-151.0,0.0001863,2]
[329283990,1718214648756,-902.97,0.0001863,2]
[329283991,1718214648779,-500.0,0.0001863,2]
[329283992,1718214648790,-151.0,0.0001863,2]
[329283993,1718214648800,-6102.19,0.0001863,2]
[329283995,1718214648811,-500.0,0.0001863,2]
[329283997,1718214648822,-500.0,0.0001863,2]
[329283998,1718214648832,-5910.41,0.0001863,2]
[329284000,1718214648842,-7011.27,0.0001863,2]
[329284002,1718214648853,-500.0,0.0001863,2]
[329284004,1718214648863,-193.848497,0.0001863,2]
[329284006,1718214648873,-193.848497,0.0001863,2]
[329284008,1718214648885,-151.0,0.0001863,2]
[329284010,1718214648896,-1809.54,0.0001863,2]
[329284012,1718214648907,-3262.64,0.0001863,2]
[329284014,1718214648918,-500.0,0.0001863,2]
[329284016,1718214648928,-553.81,0.0001863,2]
[329284017,1718214648940,-151.0,0.0001863,2]
[329284019,1718214648952,-852.76,0.0001863,2]
[329284022,1718214648963,-169.42841,0.0001863,2]
[329284024,1718214648974,-169.42841,0.0001863,2]
[329284026,1718214648986,-664.54232201,0.0001863,2]
[329284028,1718214649001,-5114.90767799,0.0001863,2]
[329284030,1718214649011,-706.57,0.0001863,2]
[329284032,1718214649023,-500.0,0.0001863,2]
[329284034,1718214649034,-500.0,0.0001863,2]
[329284036,1718214649044,-684.79,0.0001863,2]
[329284038,1718214649057,-151.0,0.0001863,2]
[329284040,1718214649069,-531.41,0.0001863,2]
[329284043,1718214649081,-500.0,0.0001863,2]
[329284045,1718214649095,-242.751346,0.0001863,2]
[329284046,1718214649105,-242.751346,0.0001863,2]
[329284047,1718214649116,-1017.72,0.0001863,2]
[329284050,1718214649134,-500.0,0.0001863,2]
[329284051,1718214649154,-399.46439245,0.0001863,2]
[329284052,1718214649169,-500.0,0.0001863,2]
[329284053,1718214649184,-1667.53,0.0001863,2]
[329284054,1718214649197,-1461.61,0.0001863,2]
[329284055,1718214649213,-151.0,0.0001863,2]
[329284056,1718214649228,-151.0,0.0001863,2]
[329284057,1718214649242,-500.0,0.0001863,2]
[329284058,1718214649257,-250.0,0.0001863,2]
[329284059,1718214649272,-222.8,0.0001874,2]
[329284060,1718214649286,-499.0,0.00018765,2]
[329284061,1718214649301,-1750.0,0.00018765,2]
[329284062,1718214649317,-242.326,0.00018765,2]
[329284063,1718214649331,-210.216,0.00018765,2]
[329284064,1718214649346,-151.0,0.000189,2]
[329284065,1718214649358,-151.0,0.000189,2]
[329284066,1718214649372,-151.0,0.000189,2]
[329284068,1718214649386,-151.0,0.000189,2]
[329284070,1718214649399,-151.0,0.000189,2]
[329284072,1718214649413,-151.0,0.000189,2]
[329284073,1718214649426,-185.915635,0.000189,2]
[329284074,1718214649439,-185.915635,0.000189,2]
[329284075,1718214649452,-151.0,0.000189,2]
[329284076,1718214649463,-10405.04488497,0.000189,2]
[329284077,1718214649476,-154.250356,0.000189,2]
[329284078,1718214649488,-154.250356,0.000189,2]
[329284079,1718214649502,-500.0,0.00018903,2]
[329284080,1718214649515,-500.0,0.00018904,2]
[329284081,1718214649531,-500.0,0.00018904,2]
[329284082,1718214649545,-500.0,0.00018904,2]
[329284084,1718214649561,-500.0,0.00018904,4]
[329284086,1718214649579,-500.0,0.00018904,2]
[329284088,1718214649592,-272.57315558,0.00018904,2]
[329284090,1718214649603,-711.32,0.00018904,2]
[329284093,1718214649615,-518.49,0.00018904,2]
[329284094,1718214649627,-500.0,0.00018904,2]
[329284097,1718214649638,-735.45,0.00018904,2]
[329284099,1718214649654,-500.0,0.00018904,2]
[329284101,1718214649668,-957.28,0.00018904,2]
[329284103,1718214649681,-500.0,0.00018904,2]
[329284106,1718214649699,-544.52816004,0.00018904,2]
[329284108,1718214649711,-500.0,0.00018904,2]
[329284110,1718214649725,-859.83,0.00018904,2]
[329284111,1718214649742,-2016.25,0.00018904,2]
[329284114,1718214649755,-892.11,0.00018904,2]
[329284115,1718214649786,-2624.68,0.00018904,2]
[329284117,1718214649800,-500.0,0.00018904,2]
[329284119,1718214649812,-1534.59,0.00018904,2]
[329284121,1718214649825,-708.14,0.00018904,2]
[329284122,1718214649837,-902.97,0.00018904,2]
[329284123,1718214649849,-500.0,0.00018904,2]
[329284125,1718214649862,-6102.19,0.00018904,2]
[329284128,1718214649874,-618.36,0.00018904,2]
[329284129,1718214649888,-500.0,0.00018904,2]
[329284130,1718214649900,-5910.41,0.00018904,2]
[329284131,1718214649914,-7011.27,0.00018904,2]
[329284132,1718214649927,-500.0,0.00018904,2]
[329284133,1718214649939,-1809.54,0.00018904,2]
[329284135,1718214649952,-3262.64,0.00018904,2]
[329284137,1718214649964,-615.67,0.00018904,2]
[329284139,1718214649977,-553.81,0.00018904,2]
[329284141,1718214649990,-852.76,0.00018904,2]
[329284143,1718214650002,-5779.45,0.00018904,2]
[329284145,1718214650017,-706.57,0.00018904,2]
[329284146,1718214650030,-500.0,0.00018904,2]
[329284147,1718214650043,-500.0,0.00018904,2]
[329284148,1718214650059,-684.79,0.00018904,2]
[329284149,1718214650076,-531.41,0.00018904,2]
[329284150,1718214650093,-161.76989292,0.00018904,2]
[329284151,1718214650109,-1017.72,0.00018904,2]
[329284152,1718214650121,-500.0,0.00018904,2]
[329284153,1718214650135,-500.0,0.00018904,2]
[329284154,1718214650148,-1667.53,0.00018904,2]
[329284155,1718214650160,-1461.61,0.00018904,2]
[329284156,1718214650173,-500.0,0.00018904,2]
[329284157,1718214650185,-222.8,0.0001895,2]
[329284158,1718214650197,-161.8,0.00018999,2]
[329284159,1718214650209,-163.14541634,0.00019,2]
[329284160,1718214650221,-7270.73643792,0.00019,2]
[329284161,1718214650233,-639.14281924,0.00019108,2]
[329284162,1718214650246,-222.8,0.0001916,2]
[329284163,1718214650259,-500.0,0.00019178,2]
[329284164,1718214650273,-500.0,0.00019178,2]
[329284165,1718214650285,-500.0,0.00019178,2]
[329284166,1718214650297,-325.35660146,0.00019178,2]
[329284167,1718214650309,-500.0,0.00019178,2]
[329284168,1718214650321,-500.0,0.00019178,2]
[329284169,1718214650333,-500.0,0.00019178,2]
[329284170,1718214650344,-500.0,0.00019178,2]
[329284171,1718214650356,-500.0,0.00019178,2]
[329284172,1718214650369,-500.0,0.00019178,2]
[329284173,1718214650381,-500.0,0.00019178,2]
[329284174,1718214650394,-500.0,0.00019178,2]
[329284175,1718214650406,-500.0,0.00019178,2]
[329284176,1718214650419,-500.0,0.00019178,2]
[329284177,1718214650431,-500.0,0.00019178,2]
[329284178,1718214650443,-500.0,0.00019178,2]
[329284179,1718214650454,-500.0,0.00019178,2]
[329284180,1718214650467,-500.0,0.00019178,2]
[329284181,1718214650479,-500.0,0.00019178,2]
[329284182,1718214650492,-500.0,0.00019178,2]
[329284183,1718214650503,-500.0,0.00019178,2]
[329284184,1718214650513,-500.0,0.00019178,2]
[329284185,1718214650525,-500.0,0.00019178,2]
[329284186,1718214650536,-500.0,0.00019178,2]
[329284187,1718214650546,-294.48531176,0.00019178,2]
[329284188,1718214650556,-500.0,0.00019178,2]
[329284189,1718214650567,-500.0,0.00019178,2]
[329284190,1718214650577,-500.0,0.00019178,2]
[329284191,1718214650588,-500.0,0.00019178,2]
[329284192,1718214650599,-500.0,0.00019178,2]
[329284193,1718214650610,-532.07034514,0.00019178,2]
[329284194,1718214650621,-296.27237271,0.00019178,2]
[329284195,1718214650631,-500.0,0.00019178,2]
[329284196,1718214650645,-500.0,0.00019178,2]
[329284197,1718214650659,-500.0,0.00019178,2]
[329284198,1718214650669,-228.74885425,0.00019178,2]
[329284199,1718214650680,-500.0,0.00019178,2]
[329284200,1718214650694,-500.0,0.00019178,2]
[329284201,1718214650706,-300.0,0.00019178,2]
[329284202,1718214650717,-500.0,0.00019178,2]
[329284203,1718214650729,-460.72868368,0.00019178,2]
[329284204,1718214650739,-500.0,0.00019178,2]
[329284205,1718214650751,-500.0,0.00019178,2]
[329284206,1718214650775,-500.0,0.00019178,2]
[329284207,1718214650787,-500.0,0.00019178,2]
[329284208,1718214650797,-500.0,0.00019178,2]
[329284209,1718214650807,-500.0,0.00019178,2]
[329284210,1718214650817,-500.0,0.00019178,2]
[329284211,1718214650828,-500.0,0.00019178,2]
[329284212,1718214650839,-532.3107478,0.00019178,2]
[329284213,1718214651033,-500.0,0.00019178,2]
[329284214,1718214651047,-508.52773438,0.00019178,2]
[329284215,1718214651060,-705.1787939,0.00019178,2]
[329284216,1718214651071,-705.1787939,0.00019178,2]
[329284217,1718214651083,-705.1787939,0.00019178,2]
[329284218,1718214651096,-705.1787939,0.00019178,2]
[329284219,1718214651107,-705.1787939,0.00019178,2]
[329284220,1718214651117,-705.1787939,0.00019178,2]
[329284221,1718214651128,-705.1787939,0.00019178,2]
[329284222,1718214651138,-705.1787939,0.00019178,2]
[329284223,1718214651149,-705.1787939,0.00019178,2]
[329284224,1718214651159,-705.1787939,0.00019178,2]
[329284225,1718214651170,-705.1787939,0.00019178,2]
[329284226,1718214651180,-705.1787939,0.00019178,2]
[329284227,1718214651191,-705.1787939,0.00019178,2]
[329284228,1718214651202,-705.1787939,0.00019178,2]
[329284229,1718214651212,-705.1787939,0.00019178,2]
[329284230,1718214651222,-705.1787939,0.00019178,2]
[329284231,1718214651233,-705.1787939,0.00019178,2]
[329284232,1718214651243,-705.1787939,0.00019178,2]
[329284233,1718214651254,-705.1787939,0.00019178,2]
[329284234,1718214651264,-705.1787939,0.00019178,2]
[329284235,1718214651277,-705.1787939,0.00019178,2]
[329284236,1718214651287,-705.1787939,0.00019178,2]
[329284237,1718214651298,-705.1787939,0.00019178,2]
[329284238,1718214651308,-705.1787939,0.00019178,2]
[329284239,1718214651318,-705.1787939,0.00019178,2]
[329284240,1718214651329,-705.1787939,0.00019178,2]
[329284241,1718214651339,-705.1787939,0.00019178,2]
[329284242,1718214651350,-705.1787939,0.00019178,2]
[329284243,1718214651360,-705.1787939,0.00019178,2]
[329284244,1718214651371,-705.1787939,0.00019178,2]
[329284245,1718214651382,-705.1787939,0.00019178,2]
[329284246,1718214651393,-705.1787939,0.00019178,2]
[329284247,1718214651404,-705.1787939,0.00019178,2]
[329284248,1718214651415,-705.1787939,0.00019178,2]
[329284249,1718214651426,-705.1787939,0.00019178,2]
[329284250,1718214651436,-500.0,0.00019178,2]
[329284251,1718214651447,-500.0,0.00019178,2]
[329284252,1718214651458,-500.0,0.00019178,2]
[329284253,1718214651469,-500.0,0.00019178,2]
[329284254,1718214651480,-500.0,0.00019178,2]
[329284255,1718214651491,-500.0,0.00019178,2]
[329284256,1718214651502,-500.0,0.00019178,2]
[329284257,1718214651512,-500.0,0.00019178,2]
[329284258,1718214651525,-500.0,0.00019178,2]
[329284259,1718214651535,-500.0,0.00019178,2]
[329284260,1718214651547,-500.0,0.00019178,2]
[329284261,1718214651558,-500.0,0.00019178,2]
[329284262,1718214651568,-247.95284549,0.00019178,2]
[329284263,1718214651792,-1044.06506728,0.00016437,2]
[329284264,1718214651805,-737.09831229,0.00016437,2]
[329284265,1718214651816,-164.371,0.00018765,2]
[329284266,1718214651827,-252.04715451,0.00019178,2]
[329284267,1718214651838,-500.0,0.00019178,2]
[329284268,1718214651849,-626.02657872,0.00019178,2]
[329284269,1718214651859,-500.0,0.00019178,2]
[329284270,1718214651870,-500.0,0.00019178,2]
[329284271,1718214651881,-170.50109463,0.00019178,2]
[329284272,1718214651891,-500.0,0.00019178,2]
[329284273,1718214651901,-500.0,0.00019178,2]
[329284274,1718214651912,-500.0,0.00019178,2]
[329284275,1718214651922,-500.0,0.00019178,2]
[329284276,1718214651933,-500.0,0.00019178,2]
[329284277,1718214651943,-500.0,0.00019178,2]
[329284278,1718214651954,-500.0,0.00019178,2]
[329284279,1718214651964,-500.0,0.00019178,2]
[329284280,1718214651975,-500.0,0.00019178,2]
[329284281,1718214651985,-500.0,0.00019178,2]
[329284282,1718214651996,-500.0,0.00019178,2]
[329284283,1718214652006,-500.0,0.00019178,2]
[329284284,1718214652016,-500.0,0.00019178,2]
[329284285,1718214652028,-500.0,0.00019178,2]
[329284286,1718214652038,-500.0,0.00019178,2]
[329284287,1718214652049,-500.0,0.00019178,2]
[329284288,1718214652060,-500.0,0.00019178,2]
[329284289,1718214652071,-500.0,0.00019178,2]
[329284290,1718214652081,-309.62288056,0.00019178,2]
[329284291,1718214652097,-190.37711944,0.00019178,2]
[329284292,1718214652109,-500.0,0.00019178,2]
[329284293,1718214652120,-500.0,0.00019178,2]
[329284294,1718214652131,-694.16037525,0.00019178,2]
[329284295,1718214652142,-694.16037525,0.00019178,2]
[329284296,1718214652153,-694.16037525,0.00019178,2]
[329284297,1718214652166,-694.16037525,0.00019178,2]
[329284298,1718214652178,-694.16037525,0.00019178,2]
[329284299,1718214652189,-694.16037525,0.00019178,2]
[329284300,1718214652201,-694.16037525,0.00019178,2]
[329284301,1718214652212,-694.16037525,0.00019178,2]
[329284302,1718214652222,-694.16037525,0.00019178,2]
[329284303,1718214652233,-694.16037525,0.00019178,2]
[329284304,1718214652243,-694.16037525,0.00019178,2]
[329284305,1718214652254,-694.16037525,0.00019178,2]
[329284306,1718214652265,-694.16037525,0.00019178,2]
[329284307,1718214652279,-694.16037525,0.00019178,2]
[329284308,1718214652290,-694.16037525,0.00019178,2]
[329284309,1718214652301,-694.16037525,0.00019178,2]
[329284310,1718214652316,-694.16037525,0.00019178,2]
[329284311,1718214652328,-694.16037525,0.00019178,2]
[329284312,1718214652343,-694.16037525,0.00019178,2]
[329284313,1718214652362,-537.66120601,0.00019178,2]
[329284314,1718214741732,155.00310006,9.999e-05,2]
[329284317,1718215157190,361.56516908,9.999e-05,2]
[329284319,1718215588059,301.30430757,9.999e-05,2]
[329284405,1718215835507,-301.30430757,0.00014929,2]
[329284407,1718215835519,-58.86572219,0.0001493,2]
[329284409,1718215835533,-169.43620981,0.0001493,2]
[329284411,1718215835543,-164.68563506,0.00015245,2]
[329284413,1718215835554,-300.0,0.00015246,2]
[329284415,1718215835565,-24498.20217994,0.00015247,2]
[329284417,1718215835578,-401.79782006,0.00015247,2]
[329284419,1718215835590,-13.93242994,0.00015295,2]
[329284427,1718215835669,-820.82724493,0.00015295,2]
[329284429,1718215835683,-2165.24032513,0.00015295,2]
[329284431,1718215835694,-190.26891304,0.00016338,2]
[329284433,1718215835705,-782.27132238,0.00016436,2]
[329284435,1718215835715,-205.1669297,0.00016436,2]
[329284437,1718215835727,-2857.08725828,0.00016436,2]
[329284439,1718215835739,-1365.2413004,0.00016437,2]
[329284441,1718215835751,-500.0,0.00016438,2]
[329284443,1718215835762,-500.0,0.00016438,2]
[329284444,1718215835776,-500.0,0.00016438,2]
[329284446,1718215835792,-500.0,0.00016438,4]
[329284448,1718215835807,-250.0,0.00016438,2]
[329284450,1718215835824,-500.0,0.00016438,2]
[329284452,1718215835838,-513.89,0.00016438,2]
[329284454,1718215835856,-500.0,0.00016438,2]
[329284456,1718215835868,-500.0,0.00016438,2]
[329284457,1718215835882,-500.0,0.00016438,2]
[329284459,1718215835894,-500.0,0.00016438,2]
[329284461,1718215835915,-228.62528089,0.00016438,2]
[329285164,1718215851791,-156.97954424,0.00016335,2]
[329285165,1718215851802,-851.39416005,0.00016336,2]
[329285166,1718215851812,-500.0,0.00016438,2]
[329285167,1718215851824,-500.0,0.00016438,2]
[329285168,1718215851836,-739.56,0.00016438,2]
[329285169,1718215851847,-500.0,0.00016438,2]
[329285170,1718215851859,-500.0,0.00016438,2]
[329285171,1718215851871,-500.0,0.00016438,2]
[329285172,1718215851884,-500.0,0.00016438,2]
[329285173,1718215851895,-513.23153849,0.00016438,2]
[329285174,1718215851906,-500.0,0.00016438,2]
[329285175,1718215851916,-500.0,0.00016438,2]
[329285176,1718215851927,-500.0,0.00016438,2]
[329285177,1718215851938,-500.0,0.00016438,2]
[329285178,1718215851949,-500.0,0.00016438,2]
[329285179,1718215851960,-500.0,0.00016438,2]
[329285180,1718215851971,-500.0,0.00016438,2]
[329285181,1718215851982,-703.96,0.00016438,2]
[329285182,1718215851993,-500.0,0.00016438,2]
[329285183,1718215852004,-516.52,0.00016438,2]
[329285184,1718215852014,-500.0,0.00016438,2]
[329285185,1718215852026,-500.0,0.00016438,2]
[329285186,1718215852036,-501.41,0.00016438,2]
[329285187,1718215852047,-500.0,0.00016438,2]
[329285188,1718215852059,-500.0,0.00016438,2]
[329285189,1718215852069,-500.0,0.00016438,2]
[329285190,1718215852084,-500.0,0.00016438,2]
[329285191,1718215852095,-500.0,0.00016438,2]
[329285192,1718215852105,-500.0,0.00016438,2]
[329285193,1718215852116,-500.0,0.00016438,2]
[329285194,1718215852128,-500.0,0.00016438,2]
[329285195,1718215852139,-500.0,0.00016438,2]
[329285196,1718215852150,-500.0,0.00016438,2]
[329285197,1718215852162,-500.0,0.00016438,2]
[329285198,1718215852172,-500.0,0.00016438,2]
[329285199,1718215852197,-500.0,0.00016438,2]
[329285200,1718215852207,-500.0,0.00016438,2]
[329285201,1718215852221,-500.0,0.00016438,2]
[329285202,1718215852233,-787.83,0.00016438,2]
[329285203,1718215852245,-500.0,0.00016438,2]
[329285204,1718215852256,-679.47,0.00016438,2]
[329285205,1718215852270,-500.0,0.00016438,2]
[329285206,1718215852281,-500.0,0.00016438,2]
[329285207,1718215852292,-500.0,0.00016438,2]
[329285208,1718215852303,-500.0,0.00016438,2]
[329285209,1718215852316,-500.0,0.00016438,2]
[329285210,1718215852326,-500.0,0.00016438,2]
[329285211,1718215852337,-500.0,0.00016438,2]
[329285212,1718215852347,-500.0,0.00016438,2]
[329285213,1718215852358,-759.79,0.00016438,2]
[329285214,1718215852369,-500.0,0.00016438,2]
[329285215,1718215852379,-5706.17,0.00016438,2]
[329285216,1718215852390,-500.0,0.00016438,2]
[329285217,1718215852402,-902.94,0.00016438,2]
[329285218,1718215852415,-500.0,0.00016438,2]
[329285219,1718215852425,-500.0,0.00016438,2]
[329285220,1718215852437,-500.0,0.00016438,2]
[329285221,1718215852448,-244.42347017,0.00016438,2]
[329285222,1718215852463,-255.57652983,0.00016438,2]
[329285223,1718215852474,-5571.63201576,0.00016438,2]
[329285224,1718215852487,-193.35798424,0.00016438,2]
[329285225,1718215852499,-547.68897216,0.00016438,2]
[329285226,1718215852509,-200.14199108,0.00016438,2]
[329285227,1718215852523,-302.0,0.00016438,2]
[329285228,1718215852536,-1303.61800892,0.00016438,2]
[329285229,1718215852548,-500.0,0.00016438,2]
[329285230,1718215852559,-500.0,0.00016438,2]
[329285231,1718215852570,-237.6,0.00016438,2]
[329285232,1718215852582,-500.0,0.00016438,2]
[329285233,1718215852593,-833.24,0.00016438,2]
[329285234,1718215852603,-2946.25,0.00016438,2]
[329285235,1718215852614,-475.95954098,0.00016438,2]
[329285236,1718215852626,-500.0,0.00016438,2]
[329285237,1718215852637,-654.62,0.00016438,2]
[329285239,1718215852647,-500.0,0.00016438,2]
[329285241,1718215852658,-500.0,0.00016438,2]
[329285243,1718215852669,-500.0,0.00016438,2]
[329285245,1718215852680,-5127.44,0.00016438,2]
[329285246,1718215852691,-500.0,0.00016438,2]
[329285248,1718215852702,-560.78,0.00016438,2]
[329285249,1718215852713,-866.72,0.00016438,2]
[329285250,1718215852724,-500.0,0.00016438,2]
[329285251,1718215852736,-500.0,0.00016438,2]
[329285252,1718215852747,-1720.65,0.00016438,2]
[329285253,1718215852758,-500.0,0.00016438,2]
[329285254,1718215852769,-500.0,0.00016438,2]
[329285255,1718215852780,-500.0,0.00016438,2]
[329285256,1718215852791,-500.0,0.00016438,2]
[329285257,1718215852801,-500.0,0.00016438,2]
[329285258,1718215852814,-1267.84,0.00016438,2]
[329285259,1718215852826,-500.0,0.00016438,2]
[329285260,1718215852836,-500.0,0.00016438,2]
[329285261,1718215852846,-201.36190086,0.00016438,2]
[329285262,1718215852857,-500.0,0.00016438,2]
[329285263,1718215852867,-500.0,0.00016438,2]
[329285264,1718215852878,-500.0,0.00016438,2]
[329285265,1718215852889,-500.0,0.00016438,2]
[329285266,1718215852899,-569.97,0.00016438,2]
[329285267,1718215852910,-500.0,0.00016438,2]
[329285268,1718215852921,-500.0,0.00016438,2]
[329285269,1718215852931,-500.0,0.00016438,2]
[329285270,1718215852943,-1707.28,0.00016438,2]
[329285271,1718215852953,-500.0,0.00016438,2]
[329285272,1718215852964,-500.0,0.00016438,2]
[329285273,1718215852974,-553.05,0.00016438,2]
[329285274,1718215852986,-500.0,0.00016438,2]
[329285275,1718215852997,-2268.01,0.00016438,2]
[329285276,1718215853009,-500.0,0.00016438,2]
[329285277,1718215853019,-500.0,0.00016438,2]
[329285278,1718215853032,-500.0,0.00016438,2]
[329285279,1718215853043,-500.0,0.00016438,2]
[329285280,1718215853055,-5205.32,0.00016438,2]
[329285281,1718215853069,-500.0,0.00016438,2]
[329285282,1718215853079,-1460.35,0.00016438,2]
[329285283,1718215853090,-391.87782309,0.00016612,2]
[329285284,1718215853103,-500.0,0.00016711,2]
[329285285,1718215853113,-500.0,0.00016711,2]
[329285286,1718215853124,-500.0,0.00016711,2]
[329285287,1718215853135,-500.0,0.00016711,2]
[329285288,1718215853146,-500.0,0.00016712,2]
[329285289,1718215853159,-500.0,0.00016712,2]
[329285290,1718215853170,-500.0,0.00016712,4]
[329285291,1718215853191,-250.0,0.00016712,2]
[329285292,1718215853202,-513.89,0.00016712,2]
[329285293,1718215853212,-500.0,0.00016712,2]
[329285294,1718215853223,-500.0,0.00016712,2]
[329285295,1718215853233,-500.0,0.00016712,2]
[329285296,1718215853244,-739.56,0.00016712,2]
[329285297,1718215853255,-500.0,0.00016712,2]
[329285298,1718215853265,-500.0,0.00016712,2]
[329285299,1718215853276,-500.0,0.00016712,2]
[329285301,1718215853287,-500.0,0.00016712,2]
[329285302,1718215853297,-500.0,0.00016712,2]
[329285304,1718215853308,-500.0,0.00016712,2]
[329285305,1718215853319,-500.0,0.00016712,2]
[329285306,1718215853329,-500.0,0.00016712,2]
[329285307,1718215853340,-703.96,0.00016712,2]
[329285308,1718215853351,-500.0,0.00016712,2]
[329285309,1718215853362,-516.52,0.00016712,2]